Cogmind - Beta 15 X1 @@@ ROGUE MODE // 2024.11.13 @ 20:58:57 Player: Plexion Result: Destroyed by as-08283 with Assembled Maul Performance ------------- Evolutions (0) 0 Regions Visited (2) 400 Robots Destroyed (29) 145 Value Destroyed (523) 523 Prototype IDs (0) 0 Alien Tech Used (0) 0 Bonus (0) 0 TOTAL SCORE: 1068 Bonus ------- None Cogmind --------- Core Integrity 0/250 Matter 300/300 Energy 100/100 System Corruption 4% Temperature Cool (0) Movement Treading (145) Location -10/Mines Parts ------- > --- POWER (1) -------- (None) > --- PROPULSION (2) --- Advanced Treads > --- UTILITY (2) ------ Large Storage Unit > --- WEAPON (2) ------- Light Assault Rifle > --- INVENTORY (15) --- Light Ion Engine Light Nuclear Core Light Treads Light Treads Light Treads Wheel Compact Wheel Improved Heat Sink Seismic Detector Peak State ------------ > --- POWER ------------ Ion Engine > --- PROPULSION ------- Light Treads Advanced Treads > --- UTILITY ---------- Large Storage Unit Seismic Detector > --- WEAPON ----------- Medium Laser Light Assault Rifle > --- INVENTORY -------- Light Ion Engine Light Nuclear Core Light Treads Light Treads Light Treads Wheel Compact Wheel Seismic Detector Light Assault Rifle [Rating: 10] Favorites ----------- Power Ion Engine Engine Ion Engine Propulsion Light Treads Treads Light Treads Utility Seismic Detector Device Seismic Detector Storage Large Storage Unit Weapon Light Assault Rifle Energy Gun Medium Laser Ballistic Gun Light Assault Rifle Build | -11 -10 -10 ------- Run | Yrd Mat Min Slots Evolved . | . . . Power . | . . . Propulsion . | . . . Utility . | . . . Weapon . | . . . Parts Attached 13 | 8 4 1 Power 1 | 1 . . Engine 1 | 1 . . Core . | . . . Reactor . | . . . Propulsion 3 | 2 . 1 Treads 3 | 2 . 1 Leg . | . . . Wheel . | . . . Hover . | . . . Flight . | . . . Utility 5 | 3 2 . Device 2 | 2 . . Storage 3 | 1 2 . Processor . | . . . Hackware . | . . . Protection . | . . . Artifact . | . . . Weapon 4 | 2 2 . Energy Gun 1 | . 1 . Energy Cannon . | . . . Ballistic Gun 3 | 2 1 . Ballistic Cannon . | . . . Launcher . | . . . Special Weapon . | . . . Impact Weapon . | . . . Slashing Weapon . | . . . Piercing Weapon . | . . . Special Melee Weapon . | . . . Unidentified Prototypes . | . . . Parts Lost 6 | . 1 5 Power 1 | . . 1 Propulsion 1 | . . 1 Utility 1 | . . 1 Weapon 3 | . 1 2 Highest Loss Streak 5 | . 1 5 To Critical Strikes . | . . . Average Backups 6 | 3 6 8 Power 1 | . 1 1 Propulsion 3 | 1 3 4 Utility . | . 1 1 Weapon . | . . 1 Tool/Special . | . . . Unused Backups 7 | . . 7 Power 2 | . . 2 Propulsion 4 | . . 4 Utility 1 | . . 1 Weapon . | . . . Tool/Special . | . . . Average Slot Usage (%) 99 | . 99 97 Engine 13 | . 14 13 Treads 27 | . 28 27 Device 13 | . 14 13 Storage 14 | . 14 14 Energy Gun 5 | . 4 13 Ballistic Gun 22 | . 23 14 Peak Build Rating 10 | 7 7 10 Average Rating 7 | 6 6 8 On Entrance 4 | . 7 7 Naked Turns . | . . . Heaviest Build 29 | 13 29 29 Greatest Support 42 | 40 40 42 Greatest Overweight (x) . | . . . Average Overweight (x) . | . . . Largest Inventory Capacity 15 | 8 15 15 Average Capacity 13 | 7 14 15 Most Carried 10 | 5 8 10 Average Carried 6 | 3 6 9 Final Capacity 15 | 8 15 15 Final Carried 9 | 5 7 9 Class Distribution -------------------- 100% | Mutant Dominant Class ---------------- Mutant | -10/Materials Mutant | -10/Mines Resources | -11 -10 -10 ----------- Run | Yrd Mat Min Matter Collected 493 | 334 141 18 Remotely . | . . . Salvage Created 925 | 211 608 106 Parts 75 | 27 43 5 Haulers Intercepted 2 | . 2 . Recyclers Shooed . | . . . Parts Field Recycled . | . . . Retrieved Matter . | . . . Parts Self-Destructed . | . . . Prevented . | . . . Kills | -11 -10 -10 ------- Run | Yrd Mat Min Combat Hostiles Destroyed 13 | . 10 3 Guns 11 | . 8 3 AOE 2 | . 2 . Classes Destroyed 9 | 2 6 1 Worker 1 | 1 . . Tunneler 9 | 9 . . Hauler 2 | . 2 . Recycler 2 | . 2 . Operator 1 | . 1 . Watcher 2 | . 2 . Swarmer 3 | . 3 . Grunt 9 | . 7 2 Assembled 1 | . . 1 Best Kill Streak 6 | 3 6 2 Combat Bots Only 4 | . 4 2 Max Kills in Single Turn 4 | 1 4 1 Gunslinging . | . . . Exploded 2 | . 2 . Melee . | . . . Uniques/NPCs Destroyed . | . . . Combat | -11 -10 -10 -------- Run | Yrd Mat Min Hostile Shots Fired 92 | . 47 45 Missed 28 | . 16 12 Damage Taken 1087 | . 452 635 Core 256 | . 132 124 Absorbed by Shields . | . . . Core Remaining (%) 100 | 100 . . Volleys Fired 97 | 27 61 9 Largest 2 | 2 2 2 Hottest 70 | 40 70 70 Shots Fired 190 | 54 118 18 Gun 190 | 54 118 18 Cannon . | . . . Launcher . | . . . Special . | . . . Kinetic 171 | 54 108 9 Thermal 19 | . 10 9 Explosive . | . . . Electromagnetic . | . . . Robot Hit Streak 10 | 8 6 10 Robot Miss Streak 7 | 2 7 3 Penetration Max . | . . . Secondary Targets . | . . . Shots Hit Robots 116 | 36 67 13 Core Hits 61 | 20 35 6 Critical Kills . | . . . Critical Parts Destroyed 1 | . 1 . Critical Strikes 2 | . 2 . Burn 1 | . 1 . Destroy 1 | . 1 . Melee Attacks . | . . . Impact . | . . . Slashing . | . . . Piercing . | . . . Sneak Attacks . | . . . Combat Hostiles . | . . . Follow-up Attacks . | . . . Damage Inflicted 1274 | 309 820 145 Guns 1028 | 309 580 139 Cannons . | . . . Explosions 236 | . 236 . Melee . | . . . Ramming 10 | . 4 6 Kinetic 871 | 309 503 59 Thermal 157 | . 77 80 Explosive 236 | . 236 . Electromagnetic . | . . . Impact . | . . . Slashing . | . . . Piercing . | . . . Highest Corruption 4 | . . 4 Average Corruption 3 | . . 3 Corruption Purged . | . . . Corruption Blocked . | . . . Overload Shots . | . . . Overflow Damage . | . . . Projectiles . | . . . Explosions . | . . . Melee . | . . . Knockbacks . | . . . Impact . | . . . Kinetic . | . . . Secondary . | . . . Self-Inflicted Damage 100 | . 100 . Shots 1 | . 1 . Rammed 4 | . 1 3 Targets Rammed 5 | . 2 3 Kicked . | . . . Crushed 1 | . 1 . Highest Temperature 124 | . 80 124 Average Temperature 35 | . 25 52 Received Heat Transfer 148 | . 84 64 Siege Activations . | . . . Martial Activations . | . . . Shielding Activations . | . . . Robots Disrupted . | . . . Combat Hostiles . | . . . Robots Corrupted . | . . . Combat Hostiles . | . . . Parts Fried . | . . . Impact Corruptions . | . . . Robots Melted . | . . . Combat Hostiles . | . . . Parts Melted 1 | . . 1 Heat Transferred 518 | . 296 222 Parts Sabotaged . | . . . Parts Stolen . | . . . Parts Stripped . | . . . Power Chain Reactions . | . . . Alert | -11 -10 -10 ------- Run | Yrd Mat Min Maximum Alert Level . | . . . Low Security (%) 100 | 100 100 100 Level 1 . | . . . Level 2 . | . . . Level 3 . | . . . Level 4 . | . . . Level 5 . | . . . High Security . | . . . Max Security . | . . . Peak Influence 175 | 10 175 40 Initial 4 | . . 4 Average 37 | 1 53 8 Influence Increases 503 | 50 403 50 Destroy 0b10 Robot/C 240 | . 200 40 Destroy 0b10 Robot/NC 85 | 50 35 . Destroy Leader 68 | . 58 10 Successful Hack 20 | . 20 . Disable Machine 30 | . 30 . Destroy Structure 45 | . 45 . Lose Combat Pursuer 15 | . 15 . Influence Decreases 495 | 50 391 54 Time Decay 475 | 50 381 44 Lost Part 20 | . 10 10 Squads Dispatched 3 | . 2 1 Investigation 2 | . 1 1 Extermination . | . . . Reinforcement 1 | . 1 . Assault . | . . . Garrison . | . . . Intercept . | . . . Searches Triggered . | . . . Construction Impeded . | . . . Haulers Reinforced . | . . . Active Scanning Responses . | . . . Cargo Convoy Interrupts . | . . . Stealth | -11 -10 -10 --------- Run | Yrd Mat Min Distress Signals 1 | . 1 . Communications Jammed . | . . . Distress Signals . | . . . Times Spotted 32 | . 19 13 Peak Tracking Total 15 | . 4 15 Tactical Retreats 2 | . 1 1 Traps | -11 -10 -10 ------- Run | Yrd Mat Min Traps Triggered 2 | . 2 . Indirectly . | . . . Trap Hack Attempts . | . . . Triggered . | . . . Disarmed . | . . . Reprogrammed . | . . . Reused . | . . . Traps Extracted . | . . . Installed . | . . . Triggered . | . . . Machines | -11 -10 -10 ---------- Run | Yrd Mat Min Machines Disabled 2 | . 2 . Max in Single Turn 1 | . 1 . Machines Repaired . | . . . Machines Dismantled . | . . . Machines Sabotaged . | . . . Overloaded Fab Kills . | . . . Hacking | -11 -10 -10 --------- Run | Yrd Mat Min Machines Accessed 7 | . 6 1 Terminals 6 | . 6 . Fabricators . | . . . Repair Stations . | . . . Recycling Units . | . . . Scanalyzers . | . . . Garrison Access . | . . . Total Hacks 22 | . 21 1 Successful 12 | . 11 1 Failed 10 | . 10 . Catastrophic . | . . . Database Lockouts . | . . . Manual 20 | . 20 . Terminals 21 | . 21 . Fabricators . | . . . Repair Stations . | . . . Recycling Units . | . . . Scanalyzers . | . . . Garrison Access . | . . . Terminal Hacks 3 | . 2 1 Robot Analysis 1 | . 1 . Open Door 1 | . . 1 Terminal Index 1 | . 1 . Fabricator Hacks . | . . . Repair Station Hacks . | . . . Recycling Unit Hacks . | . . . Scanalyzer . | . . . Garrison Access Hacks . | . . . Unauthorized Hacks 9 | . 9 . Terminals 9 | . 9 . Botnet 4 | . 4 . Skim 5 | . 5 . Fabricators . | . . . Repair Stations . | . . . Recycling Units . | . . . Scanalyzers . | . . . Garrison Access . | . . . Data Cores Recovered 1 | . 1 . Used . | . . . Hacking Detections 6 | . 6 . Full Trace Events . | . . . Feedback Events . | . . . Feedback Blocked . | . . . Robot Schematics Acquired . | . . . Robots Built . | . . . Authchips . | . . . Time . | . . . Total Robot Build Rating . | . . . Part Schematics Acquired . | . . . Parts Built . | . . . Authchips . | . . . Time . | . . . Total Part Build Rating . | . . . Parts Repaired . | . . . Time . | . . . Parts Recycled . | . . . Recycled Matter . | . . . Retrieved Matter . | . . . Retrieved Components . | . . . Parts Scanalyzed . | . . . Part Schematics Acquired . | . . . Parts Damaged . | . . . Bothacking | -11 -10 -10 ------------ Run | Yrd Mat Min Used RIF Installer . | . . . Robots Hacked . | . . . Non-combat . | . . . Combat . | . . . Robot Hacks Applied . | . . . Relay Couplers Released . | . . . Fabnet Peak Effective % . | . . . Robots Rewired . | . . . Allies Hacked . | . . . Hacks Repelled . | . . . Allies | -11 -10 -10 -------- Run | Yrd Mat Min Total Allies . | . . . Largest Group . | . . . Highest-Rated Group . | . . . Highest-Rated Ally . | . . . Total Orders . | . . . Ally Attacks . | . . . Total Damage . | . . . Kills . | . . . Allies Corrupted . | . . . Allies Melted . | . . . Intel | -11 -10 -10 ------- Run | Yrd Mat Min Active Infowar (turns) 1487 | 218 1065 204 Seismic 1487 | 218 1065 204 Robot Analysis Total 1 | . 1 . Derelict Logs Recovered 2 | . . 2 Drone Launches . | . . . Drone Recoveries . | . . . Exploration | -11 -10 -10 ------------- Run | Yrd Mat Min Turns Passed 1599 | 325 1065 209 Spaces Moved 771 | 152 506 113 Core 4 | 4 . . Treads 767 | 148 506 113 Legs . | . . . Wheels . | . . . Hover . | . . . Flight . | . . . Fastest Speed 50 | 50 160 152 Average Speed 158 | 157 160 154 Slowest Speed 160 | 160 160 160 Overloaded Moves . | . . . Propulsion Burnouts . | . . . Robots Hopped . | . . . Cave-ins Triggered . | . . . Exploration Rate (%) 40 | 7 90 25 Regions Visited 2 Branch Regions 1 Pre-discovered Areas 2 | . 1 1 Known Exits Taken . | . . . Unknown Exits Taken 2 | 1 1 . Scrap Searched . | . . . Spaces Dug . | . . . Terrain Destroyed 46 | . 46 . Melee . | . . . Projectile . | . . . AOE 46 | . 46 . Terrain Rammed . | . . . Walls Destroyed . | . . . Machines Disabled . | . . . Actions | -11 -10 -10 --------- Run | Yrd Mat Min Total 983 | 191 663 129 Wait 88 | 1 87 . Move 769 | 151 505 113 Hop . | . . . Pick Up 8 | 4 2 2 Fast Attach 7 | 7 . . Attach 2 | . 1 1 Detach . | . . . Swap 5 | 1 3 1 Drop 2 | . 2 . Fire 97 | 27 61 9 Melee . | . . . Ram . | . . . Kick . | . . . Crush 5 | . 2 3 Escape Stasis . | . . . Rewire . | . . . Trap . | . . . Miscellaneous . | . . . Route ------- -11/Scrapyard -10/Materials (discovered 5 exits: *Mat x3 / *Min / Sub) -10/Mines History --------- Turn | Location | Event 48 | -11/Scrapyard | Discovered new exit (range 15) 326 | -11/Scrapyard | Entered Materials 327 | -10/Materials | Build established: Mutant 578 | -10/Materials | Discovered new exit (range 12) 783 | -10/Materials | Discovered new exit (range 10) 958 | -10/Materials | Discovered new exit (range 6) 1011 | -10/Materials | Identified exit to Materials 1050 | -10/Materials | Identified exit to Subcaves 1096 | -10/Materials | Learned 2 Storage zone layouts 1107 | -10/Materials | Learned Storage terminal intel 1108 | -10/Materials | Learned Recycling recycling unit intel 1113 | -10/Materials | Learned location of 2 exits from Materials 1130 | -10/Materials | Learned Storage trap positions 1159 | -10/Materials | Learned Storage trap positions 1263 | -10/Materials | Core integrity fell below 50% 1391 | -10/Materials | Entered Mines 1399 | -10/Mines | Learned location of Storage (-8) 1419 | -10/Mines | Learned 4 Materials zone layouts 1442 | -10/Mines | Met a Derelict shopkeep closing up shop 1574 | -10/Mines | Assembled infested the area 1597 | -10/Mines | Core integrity fell below 20% 1600 | -10/Mines | Destroyed by as-08283 with Assembled Maul Last Messages --------------- 01527_ G-47 Trooper destroyed. 01538_ Ion Engine melted. 01538_ G-34 Mercenary destroyed. 01544_ Acquired 18 matter. 01574_ ALERT: Infestation in the mines, dispatching Demolisher response squad. 01574_ K-01 Serf suffers critical hit (Destroy). 01574_ K-01 Serf destroyed. 01587_ as-11929 destroyed. 01588_ K-01 Serf destroyed. 01591_ Ion Engine destroyed. 01593_ Lgt. Treads destroyed. 01593_ System corrupted by crushing effect (+3). 01594_ Med. Laser destroyed. 01595_ Seismic Detector destroyed. 01595_ System corrupted by crushing effect (+1). 01595_ Lgt. Assault Rifle destroyed. 01596_ Slammed into as-27096. 01597_ Slammed into as-08283. 01599_ Slammed into as-94055. Map ----- +----------------------------------------------------+ | ??????????????????????????????????????????? | | ??????????????????????????????????????????? | | ??????????????????????????????????????????? | | ??????????????????????????????????????????? | | ??????????????????????????????????????????? | | ??????????????????????????????????????????? | | ????#######???????????????????????????????? | | ????# #???????????????????????????????? | | ????# #######????####?????????????????? | | ????# #???## ##????????????????? | | ????# =% ##### ##???????????????? | | ##### #### !%= ##??????????????? | | #??# *= #####??????????? | | ###########??####### ## ##?????????? | | ???????????????????# ##### #?????????? | | ???????????????????# #???## #?????????? | | ???????????????????# #???## ##??##????? | | ??????????????????? #??## ## ##???? | | ??????????????????? #??# ##??? | | ??????????????????? #?## #??? | | ?????????????????? ??# #?? | | ?????????????????? ??# #? | | ?????????????????? ?##%=a ## #? | | ?????????????????? ### = aa#### ##? | | ????????????????? ?# aaa%#??# ###?? | | ????????????????? ?#?# a@ #??# ##???? | | ?????????????????????# aa##??## #????? | | ?????????????????????# a##????? ##????? | | ?????????????????????## ##?????? ##?????? | | ??????????????????????## ???????? #??????? | | ???????????????????????# ???????? #??????? | | ???????????????????????# ???????? #??????? | | ???????????????????????#a???????? #??????? | | ???????????????????????# ????????=%!??????? | | ???????????????????????#??????????= ??????? | | ??????????????????????????????????????????? | | ??????????????????????????????????????????? | | ??????????????????????????????????????????? | | ??????????????????????????????????????????? | | ??????????????????????????????????????????? | | ??????????????????????????????????????????? | | ??????????????????????????????????????????? | | ??????????????????????????????????????????? | | ??????????????????????????????????????????? | | ??????????????????????????????????????????? | | ??????????????????????????????????????????? | | ??????????????????????????????????????????? | | ??????????????????????????????????????????? | | ??????????????????????????????????????????? | | ??????????????????????????????????????????? | +----------------------------------------------------+ Best States ------------- Heat Dissipation 25 Energy Generation 10 Energy Capacity 250 Matter Stores 300 Matter Capacity 300 Sight Range 16 Terrain Scan Density 10 Evasion (%) 40 Recoil Reduction 2 Item Schematics ----------------- None Robot Schematics ------------------ None Fabricated ------------ Nothing Repaired ---------- Nothing Alien Tech Used ----------------- None Achievements -------------- None Challenges ------------ None Game ------ Seed ThiefChargeSteel Manual? 0 Play Time 00:09:42 Cumulative 675.5 hours Start 2024.11.13 @ 20:46:29 End 2024.11.13 @ 20:58:57 Sessions 1 Manual Loads 0 Difficulty Rogue Special Mode None Game No. 712 Rogue 625 Adventurer 87 Explorer 0 Win Type - Total 41 Types 8/0/27/1/1/1/3/0/0 Lore% 96 Gallery% 93 Achievement% 80 Wizard Run 0 Options --------- Layout 0 ASCII 0 Keyboard 1 Movement Numpad Keybinds 0 Fullscreen 2 Font 18/SmallcapsGlow Map View 76x50 Zoom Use 0% Tactical HUD 1 Map Filters NONE Filters NONE Steam 1 RUN: 99033211-2a45-4e43-bf55-b6a3d534adeb